[Event "*** Titled Tuesday Blitz"]
[Site "Chess.com"]
[Date "2020.05.26"]
[Round "10"]
[White "Charlottemillard17"]
[Black "m-garcett"]
[Result "0-1"]
[WhiteElo "1448"]
[BlackElo "1978"]
[TimeControl "180+1"]
[EndTime "11:58:49 PDT"]
[Termination "m-garcett won by checkmate"]

1. e4 {[%clk 0:03:00.9]} 1... c5 {[%clk 0:02:58.6]} 2. Nf3 {[%clk 0:03:00.1]}
2... d6 {[%clk 0:02:58.1]} 3. d4 {[%clk 0:03:00.1]} 3... cxd4 {[%clk 0:02:58.2]}
4. Nxd4 {[%clk 0:03:00.8]} 4... Nf6 {[%clk 0:02:57.7]} 5. Nc3 {[%clk 0:03:00.7]}
5... a6 {[%clk 0:02:58.2]} 6. f4 {[%clk 0:03:00.6]} 6... e6 {[%clk 0:02:56.8]}
7. Be2 {[%clk 0:03:00]} 7... Nbd7 {[%clk 0:02:55.4]} 8. g4 {[%clk 0:02:58.2]}
8... Nc5 {[%clk 0:02:40.5]} 9. Bf3 {[%clk 0:02:41.1]} 9... h5 {[%clk 0:02:23.5]}
10. g5 {[%clk 0:02:37.4]} 10... Ng4 {[%clk 0:02:23.3]} 11. h4 {[%clk 0:02:22.3]}
11... e5 {[%clk 0:02:07.4]} 12. Nb3 {[%clk 0:01:48.4]} 12... Nxb3 {[%clk
0:01:51.2]} 13. axb3 {[%clk 0:01:47.4]} 13... Qb6 {[%clk 0:01:51.4]} 14. f5
{[%clk 0:01:41]} 14... Qf2# {[%clk 0:01:47.5]} 0-1

[Event "*** Titled Tuesday Blitz"]
[Site "Chess.com"]
[Date "2020.05.26"]
[Round "10"]
[White "Matveev_Vladimir"]
[Black "binbin239"]
[Result "1-0"]
[WhiteElo "2561"]
[BlackElo "2395"]
[TimeControl "180+1"]
[EndTime "11:58:50 PDT"]
[Termination "Matveev_Vladimir won by resignation"]

1. d4 {[%clk 0:03:00.9]} 1... Nf6 {[%clk 0:02:59.5]} 2. c4 {[%clk 0:03:01.2]}
2... g6 {[%clk 0:02:59.9]} 3. Nc3 {[%clk 0:03:01.1]} 3... d5 {[%clk 0:03:00.3]}
4. cxd5 {[%clk 0:03:01.3]} 4... Nxd5 {[%clk 0:03:00.6]} 5. e4 {[%clk 0:03:02.2]}
5... Nxc3 {[%clk 0:03:01]} 6. bxc3 {[%clk 0:03:03.1]} 6... Bg7 {[%clk
0:03:01.2]} 7. Bg5 {[%clk 0:03:03.6]} 7... c5 {[%clk 0:03:01.3]} 8. Rc1 {[%clk
0:03:03.3]} 8... O-O {[%clk 0:02:55.2]} 9. Nf3 {[%clk 0:03:01.8]} 9... cxd4
{[%clk 0:02:51.2]} 10. cxd4 {[%clk 0:03:01.7]} 10... Bg4 {[%clk 0:02:51]} 11. d5
{[%clk 0:02:56.9]} 11... Nd7 {[%clk 0:02:46.6]} 12. Be2 {[%clk 0:02:52.2]} 12...
Nf6 {[%clk 0:02:39.7]} 13. Qa4 {[%clk 0:02:26.2]} 13... b5 {[%clk 0:02:31.9]}
14. Bxb5 {[%clk 0:02:19.5]} 14... Nxe4 {[%clk 0:02:19.5]} 15. Qxe4 {[%clk
0:02:00.5]} 15... Bxf3 {[%clk 0:02:19.3]} 16. Qxf3 {[%clk 0:01:56.3]} 16... Qa5+
{[%clk 0:02:19]} 17. Bd2 {[%clk 0:01:56]} 17... Qxb5 {[%clk 0:02:19.3]} 18. Qb3
{[%clk 0:01:54.7]} 18... Qa6 {[%clk 0:02:16.4]} 19. Rc6 {[%clk 0:01:48.6]} 1-0

[Event "*** Titled Tuesday Blitz"]
[Site "Chess.com"]
[Date "2020.05.26"]
[Round "10"]
[White "levallem"]
[Black "S_Kalvaitis"]
[Result "0-1"]
[WhiteElo "2170"]
[BlackElo "2321"]
[TimeControl "180+1"]
[EndTime "11:58:53 PDT"]
[Termination "S_Kalvaitis won by resignation"]

1. d4 {[%clk 0:03:00.9]} 1... d5 {[%clk 0:02:58.7]} 2. c4 {[%clk 0:03:01.2]}
2... e5 {[%clk 0:02:59.1]} 3. cxd5 {[%clk 0:02:57.4]} 3... Qxd5 {[%clk
0:02:58.1]} 4. dxe5 {[%clk 0:02:57.7]} 4... Qxd1+ {[%clk 0:02:57.4]} 5. Kxd1
{[%clk 0:02:58.6]} 5... Nc6 {[%clk 0:02:58]} 6. Nf3 {[%clk 0:02:58.3]} 6... Bc5
{[%clk 0:02:53]} 7. e3 {[%clk 0:02:53.6]} 7... Nge7 {[%clk 0:02:52.3]} 8. Nc3
{[%clk 0:02:51.3]} 8... Bg4 {[%clk 0:02:51.3]} 9. Be2 {[%clk 0:02:43.8]} 9...
O-O-O+ {[%clk 0:02:51.5]} 10. Bd2 {[%clk 0:02:41.3]} 10... Ng6 {[%clk 0:02:46]}
11. a3 {[%clk 0:02:33.6]} 11... Ncxe5 {[%clk 0:02:30.3]} 12. Nxe5 {[%clk
0:02:27.5]} 12... Nxe5 {[%clk 0:02:31.2]} 13. Bxg4+ {[%clk 0:02:26.4]} 13...
Nxg4 {[%clk 0:02:32.1]} 14. Ne4 {[%clk 0:02:19.2]} 14... Nxf2+ {[%clk
0:02:08.4]} 15. Nxf2 {[%clk 0:02:08.4]} 15... Bxe3 {[%clk 0:02:08.6]} 16. Ne4
{[%clk 0:01:48.3]} 16... Rhe8 {[%clk 0:02:07.5]} 17. Ke2 {[%clk 0:01:45.7]}
17... Bxd2 {[%clk 0:01:52]} 18. Kf3 {[%clk 0:01:43.3]} 18... Rd3+ {[%clk
0:01:48.9]} 0-1

[Event "*** Titled Tuesday Blitz"]
[Site "Chess.com"]
[Date "2020.05.26"]
[Round "10"]
[White "ChessicallyInclined"]
[Black "bakki78"]
[Result "0-1"]
[WhiteElo "2523"]
[BlackElo "2745"]
[TimeControl "180+1"]
[EndTime "11:58:56 PDT"]
[Termination "bakki78 won by resignation"]

1. d4 {[%clk 0:03:00.9]} 1... Nf6 {[%clk 0:02:59.5]} 2. c4 {[%clk 0:03:00.9]}
2... g6 {[%clk 0:02:59.8]} 3. Nc3 {[%clk 0:03:01.1]} 3... Bg7 {[%clk 0:03:00.2]}
4. e4 {[%clk 0:03:00.9]} 4... d6 {[%clk 0:03:00.3]} 5. f3 {[%clk 0:03:01.1]}
5... a6 {[%clk 0:02:59.2]} 6. Be3 {[%clk 0:03:01.2]} 6... c6 {[%clk 0:02:58.5]}
7. c5 {[%clk 0:03:01.7]} 7... b5 {[%clk 0:02:57.9]} 8. cxb6 {[%clk 0:03:02]}
8... Qxb6 {[%clk 0:02:57.6]} 9. Qd2 {[%clk 0:03:01.9]} 9... O-O {[%clk
0:02:56.2]} 10. Nge2 {[%clk 0:03:02.4]} 10... a5 {[%clk 0:02:56.1]} 11. Nf4
{[%clk 0:03:02.5]} 11... Ba6 {[%clk 0:02:56]} 12. Bxa6 {[%clk 0:03:02.7]} 12...
Nxa6 {[%clk 0:02:55.9]} 13. O-O {[%clk 0:03:02.8]} 13... Nd7 {[%clk 0:02:53.2]}
14. Rfc1 {[%clk 0:03:00.9]} 14... Nc7 {[%clk 0:02:48.1]} 15. b3 {[%clk
0:02:59.2]} 15... Qb7 {[%clk 0:02:44.9]} 16. Na4 {[%clk 0:02:57.5]} 16... Nb5
{[%clk 0:02:42.9]} 17. Qd3 {[%clk 0:02:52.1]} 17... Rfc8 {[%clk 0:02:40.3]} 18.
Ne2 {[%clk 0:02:47.9]} 18... c5 {[%clk 0:02:36]} 19. Rab1 {[%clk 0:02:41.4]}
19... Na3 {[%clk 0:02:21.4]} 20. Rb2 {[%clk 0:02:28]} 20... cxd4 {[%clk
0:01:56.7]} 21. Rxc8+ {[%clk 0:02:21.7]} 21... Rxc8 {[%clk 0:01:55.8]} 22. Nxd4
{[%clk 0:02:19.6]} 22... Nc5 {[%clk 0:01:54.1]} 23. Nxc5 {[%clk 0:02:09.3]}
23... dxc5 {[%clk 0:01:51.5]} 0-1

[Event "*** Titled Tuesday Blitz"]
[Site "Chess.com"]
[Date "2020.05.26"]
[Round "10"]
[White "Aleksandar-Topalov"]
[Black "MomchilPetkov"]
[Result "0-1"]
[WhiteElo "2388"]
[BlackElo "2550"]
[TimeControl "180+1"]
[EndTime "11:59:17 PDT"]
[Termination "MomchilPetkov won by resignation"]

1. b3 {[%clk 0:03:00.9]} 1... d5 {[%clk 0:02:58.6]} 2. Bb2 {[%clk 0:03:00.8]}
2... c6 {[%clk 0:02:58.5]} 3. Nf3 {[%clk 0:03:00.6]} 3... Nf6 {[%clk 0:02:58.3]}
4. g3 {[%clk 0:03:00.9]} 4... Bf5 {[%clk 0:02:58.2]} 5. Bg2 {[%clk 0:03:01.2]}
5... e6 {[%clk 0:02:58.5]} 6. O-O {[%clk 0:03:01.7]} 6... Be7 {[%clk 0:02:58.1]}
7. d3 {[%clk 0:03:02.3]} 7... h6 {[%clk 0:02:58.4]} 8. Nbd2 {[%clk 0:03:02.5]}
8... O-O {[%clk 0:02:58.4]} 9. e3 {[%clk 0:03:03]} 9... a5 {[%clk 0:02:58.1]}
10. a3 {[%clk 0:03:03]} 10... Nbd7 {[%clk 0:02:57.8]} 11. Qe2 {[%clk 0:03:02.9]}
11... Bh7 {[%clk 0:02:58]} 12. e4 {[%clk 0:03:03.3]} 12... b5 {[%clk 0:02:51.9]}
13. Kh1 {[%clk 0:02:59.7]} 13... Rc8 {[%clk 0:02:48.2]} 14. Ng1 {[%clk
0:02:54.4]} 14... a4 {[%clk 0:02:48.1]} 15. f4 {[%clk 0:02:52.4]} 15... axb3
{[%clk 0:02:43.7]} 16. cxb3 {[%clk 0:02:52.6]} 16... dxe4 {[%clk 0:02:43.4]} 17.
dxe4 {[%clk 0:02:51.6]} 17... Nc5 {[%clk 0:02:43.7]} 18. b4 {[%clk 0:02:35.7]}
18... Na4 {[%clk 0:02:35.5]} 19. Bxf6 {[%clk 0:02:27.1]} 19... Bxf6 {[%clk
0:02:34.8]} 20. e5 {[%clk 0:02:27.7]} 20... Be7 {[%clk 0:02:34.7]} 21. Ne4
{[%clk 0:02:27.7]} 21... c5 {[%clk 0:02:28.7]} 22. Rfd1 {[%clk 0:02:27.4]} 22...
Qb6 {[%clk 0:02:27.8]} 23. Nd6 {[%clk 0:02:06.8]} 23... Rcd8 {[%clk 0:02:22.4]}
24. Nxb5 {[%clk 0:02:01.3]} 24... Rxd1 {[%clk 0:02:08.5]} 25. Rxd1 {[%clk
0:02:00.1]} 25... cxb4 {[%clk 0:02:08.1]} 26. axb4 {[%clk 0:02:00]} 26... Bxb4
{[%clk 0:02:06.9]} 27. Nd6 {[%clk 0:01:53.5]} 27... Nc3 {[%clk 0:02:02.2]} 28.
Qe1 {[%clk 0:01:48.6]} 28... Nxd1 {[%clk 0:02:00.5]} 29. Qxd1 {[%clk 0:01:48.9]}
29... Bxd6 {[%clk 0:01:57.2]} 30. exd6 {[%clk 0:01:48.2]} 30... Rd8 {[%clk
0:01:57.1]} 31. d7 {[%clk 0:01:48.4]} 31... Qc7 {[%clk 0:01:55.4]} 0-1

[Event "*** Titled Tuesday Blitz"]
[Site "Chess.com"]
[Date "2020.05.26"]
[Round "10"]
[White "ElliPaehtz"]
[Black "Chessdemon2019"]
[Result "1-0"]
[WhiteElo "2485"]
[BlackElo "2317"]
[TimeControl "180+1"]
[EndTime "11:59:22 PDT"]
[Termination "ElliPaehtz won by resignation"]

1. d4 {[%clk 0:03:00.9]} 1... Nf6 {[%clk 0:02:59.5]} 2. Nf3 {[%clk 0:03:00.2]}
2... b6 {[%clk 0:02:59.3]} 3. Bg5 {[%clk 0:02:59.3]} 3... Bb7 {[%clk 0:02:58.9]}
4. Nbd2 {[%clk 0:02:58.8]} 4... e6 {[%clk 0:02:58.4]} 5. e3 {[%clk 0:02:58]}
5... Be7 {[%clk 0:02:56.3]} 6. Bd3 {[%clk 0:02:56.7]} 6... h6 {[%clk 0:02:55.8]}
7. Bh4 {[%clk 0:02:52.4]} 7... d5 {[%clk 0:02:55.7]} 8. c3 {[%clk 0:02:50.6]}
8... O-O {[%clk 0:02:55]} 9. Bxf6 {[%clk 0:02:50.3]} 9... Bxf6 {[%clk
0:02:54.7]} 10. g4 {[%clk 0:02:49.8]} 10... c5 {[%clk 0:02:51.4]} 11. h4 {[%clk
0:02:49.2]} 11... e5 {[%clk 0:02:38.2]} 12. dxe5 {[%clk 0:02:46.7]} 12... Be7
{[%clk 0:02:31.4]} 13. Qe2 {[%clk 0:02:43.5]} 13... Nd7 {[%clk 0:02:23.4]} 14.
g5 {[%clk 0:02:42.5]} 14... h5 {[%clk 0:02:22.1]} 15. g6 {[%clk 0:02:42.1]}
15... f6 {[%clk 0:02:20.1]} 16. e6 {[%clk 0:02:40]} 16... Re8 {[%clk 0:01:43.7]}
17. exd7 {[%clk 0:02:34.3]} 17... Qxd7 {[%clk 0:01:43.7]} 18. Nh2 {[%clk
0:02:30.2]} 18... Bd6 {[%clk 0:01:37.7]} 19. Qxh5 {[%clk 0:02:28.1]} 19... d4
{[%clk 0:01:38]} 20. Qh7+ {[%clk 0:02:13]} 20... Kf8 {[%clk 0:01:38]} 21. Qh8+
{[%clk 0:02:13.1]} 21... Ke7 {[%clk 0:01:38.5]} 22. Qxg7+ {[%clk 0:02:13.6]}
22... Kd8 {[%clk 0:01:39.1]} 23. Qxd7+ {[%clk 0:02:13.7]} 23... Kxd7 {[%clk
0:01:39.5]} 24. Bb5+ {[%clk 0:02:13.7]} 24... Kc7 {[%clk 0:01:38.7]} 25. Bxe8
{[%clk 0:02:11.5]} 25... Bxh1 {[%clk 0:01:38.3]} 26. Bf7 {[%clk 0:02:10.1]}
26... Bxh2 {[%clk 0:01:38]} 27. g7 {[%clk 0:02:09.6]} 27... dxe3 {[%clk
0:01:37.8]} 28. fxe3 {[%clk 0:02:08.1]} 28... Bg3+ {[%clk 0:01:37.6]} 29. Ke2
{[%clk 0:02:07.6]} 29... Be4 {[%clk 0:01:36.9]} 30. Nxe4 {[%clk 0:02:07]} 30...
Rg8 {[%clk 0:01:37.6]} 31. Nxf6 {[%clk 0:02:02.5]} 31... Rxg7 {[%clk 0:01:37.2]}
32. Ne8+ {[%clk 0:02:02.5]} 32... Kd7 {[%clk 0:01:36.8]} 33. Nxg7 {[%clk
0:02:02.3]} 33... Bxh4 {[%clk 0:01:37.5]} 34. Nf5 {[%clk 0:02:01.3]} 1-0

[Event "*** Titled Tuesday Blitz"]
[Site "Chess.com"]
[Date "2020.05.26"]
[Round "10"]
[White "tsvet2005"]
[Black "Gerodot71"]
[Result "1-0"]
[WhiteElo "2526"]
[BlackElo "2366"]
[TimeControl "180+1"]
[EndTime "11:59:25 PDT"]
[Termination "tsvet2005 won by resignation"]

1. d4 {[%clk 0:03:00.9]} 1... Nf6 {[%clk 0:02:59.6]} 2. c4 {[%clk 0:03:01.5]}
2... e6 {[%clk 0:02:59.7]} 3. Nc3 {[%clk 0:03:01.8]} 3... d5 {[%clk 0:03:00.1]}
4. cxd5 {[%clk 0:03:01.8]} 4... exd5 {[%clk 0:03:01]} 5. Bg5 {[%clk 0:03:01.8]}
5... Be7 {[%clk 0:03:01.6]} 6. e3 {[%clk 0:03:00.6]} 6... O-O {[%clk 0:03:01.2]}
7. Bd3 {[%clk 0:03:00.8]} 7... h6 {[%clk 0:03:01.4]} 8. Bh4 {[%clk 0:03:00.6]}
8... c6 {[%clk 0:03:01.7]} 9. Nge2 {[%clk 0:03:00.7]} 9... Re8 {[%clk
0:02:59.6]} 10. O-O {[%clk 0:03:00.8]} 10... a5 {[%clk 0:02:59.1]} 11. f3 {[%clk
0:02:54.3]} 11... Nbd7 {[%clk 0:02:49.7]} 12. e4 {[%clk 0:02:52.5]} 12... dxe4
{[%clk 0:02:47]} 13. fxe4 {[%clk 0:02:53.4]} 13... Ng4 {[%clk 0:02:44.3]} 14.
Bxe7 {[%clk 0:02:51.2]} 14... Qxe7 {[%clk 0:02:45.2]} 15. Qd2 {[%clk 0:02:48.3]}
15... Qh4 {[%clk 0:02:40.4]} 16. Qf4 {[%clk 0:02:45.9]} 16... Qh5 {[%clk
0:02:34.7]} 17. e5 {[%clk 0:02:29.9]} 17... c5 {[%clk 0:02:26.3]} 18. h3 {[%clk
0:02:22.8]} 18... Ngxe5 {[%clk 0:02:18.9]} 19. dxe5 {[%clk 0:02:18.9]} 19...
Nxe5 {[%clk 0:02:19.6]} 20. Bb5 {[%clk 0:02:13.4]} 20... Re7 {[%clk 0:02:16.7]}
21. Nd5 {[%clk 0:02:06]} 21... Re6 {[%clk 0:02:11.1]} 22. Nc7 {[%clk 0:01:58.9]}
22... Rg6 {[%clk 0:02:11.2]} 23. Ng3 {[%clk 0:01:52.6]} 23... Rxg3 {[%clk
0:01:57.6]} 24. Qxg3 {[%clk 0:01:53.5]} 24... Rb8 {[%clk 0:01:55]} 25. Rae1
{[%clk 0:01:53.7]} 25... f6 {[%clk 0:01:53.8]} 26. Rxf6 {[%clk 0:01:44.8]} 26...
Nf7 {[%clk 0:01:47.6]} 27. Re8+ {[%clk 0:01:43.1]} 27... Kh7 {[%clk 0:01:48]}
28. Bd3+ {[%clk 0:01:43.5]} 1-0

[Event "*** Titled Tuesday Blitz"]
[Site "Chess.com"]
[Date "2020.05.26"]
[Round "10"]
[White "Onwgs"]
[Black "mattcolins2025"]
[Result "0-1"]
[WhiteElo "2455"]
[BlackElo "2333"]
[TimeControl "180+1"]
[EndTime "11:59:25 PDT"]
[Termination "mattcolins2025 won by resignation"]

1. e4 {[%clk 0:03:00.9]} 1... c5 {[%clk 0:02:59.1]} 2. c3 {[%clk 0:03:00.8]}
2... Nf6 {[%clk 0:02:58.9]} 3. e5 {[%clk 0:03:01]} 3... Nd5 {[%clk 0:02:59.4]}
4. d4 {[%clk 0:03:01.9]} 4... cxd4 {[%clk 0:03:00]} 5. Nf3 {[%clk 0:03:01.7]}
5... e6 {[%clk 0:02:58.7]} 6. cxd4 {[%clk 0:03:01.9]} 6... d6 {[%clk 0:02:58.7]}
7. Bc4 {[%clk 0:03:01.9]} 7... Be7 {[%clk 0:02:57.9]} 8. O-O {[%clk 0:03:01.9]}
8... O-O {[%clk 0:02:57.2]} 9. Qe2 {[%clk 0:03:02.1]} 9... Nc6 {[%clk
0:02:57.1]} 10. Re1 {[%clk 0:03:02.3]} 10... b6 {[%clk 0:02:56.8]} 11. Qe4
{[%clk 0:03:01.3]} 11... Bb7 {[%clk 0:02:54.9]} 12. Bd3 {[%clk 0:03:01.2]} 12...
g6 {[%clk 0:02:55]} 13. a3 {[%clk 0:02:56.6]} 13... Qc7 {[%clk 0:02:54.4]} 14.
Qg4 {[%clk 0:02:56]} 14... Rfd8 {[%clk 0:02:48.7]} 15. Bg5 {[%clk 0:02:53.8]}
15... Bxg5 {[%clk 0:02:43.5]} 16. Nxg5 {[%clk 0:02:54.7]} 16... dxe5 {[%clk
0:02:42.1]} 17. Qh4 {[%clk 0:02:45.9]} 17... h5 {[%clk 0:02:35.8]} 18. Be2
{[%clk 0:02:45.9]} 18... Nf4 {[%clk 0:02:34.1]} 19. Nc3 {[%clk 0:02:40.6]} 19...
Rxd4 {[%clk 0:02:31.6]} 20. Qg3 {[%clk 0:02:35.3]} 20... Nxe2+ {[%clk 0:02:27]}
21. Nxe2 {[%clk 0:02:31.3]} 21... Rg4 {[%clk 0:02:26.4]} 22. Qe3 {[%clk
0:02:31.4]} 22... Qe7 {[%clk 0:01:40.5]} 23. Nf3 {[%clk 0:02:16.4]} 23... Nd4
{[%clk 0:01:39.6]} 24. Nexd4 {[%clk 0:02:02.8]} 24... exd4 {[%clk 0:01:38.9]}
25. Qe2 {[%clk 0:02:03.4]} 25... Qf6 {[%clk 0:01:28.5]} 0-1

[Event "*** Titled Tuesday Blitz"]
[Site "Chess.com"]
[Date "2020.05.26"]
[Round "10"]
[White "Nikolaj_6"]
[Black "almaguerjm"]
[Result "1-0"]
[WhiteElo "2519"]
[BlackElo "2352"]
[TimeControl "180+1"]
[EndTime "11:59:28 PDT"]
[Termination "Nikolaj_6 won by resignation"]

1. e4 {[%clk 0:03:00.9]} 1... e5 {[%clk 0:02:57.7]} 2. Nf3 {[%clk 0:03:00.1]}
2... Nc6 {[%clk 0:02:57.9]} 3. Bb5 {[%clk 0:03:00]} 3... a6 {[%clk 0:02:57.6]}
4. Ba4 {[%clk 0:03:00.3]} 4... Nf6 {[%clk 0:02:57.7]} 5. O-O {[%clk 0:03:00.3]}
5... Be7 {[%clk 0:02:57.9]} 6. Re1 {[%clk 0:02:59.5]} 6... b5 {[%clk 0:02:57.8]}
7. Bb3 {[%clk 0:02:59.9]} 7... O-O {[%clk 0:02:58.3]} 8. c3 {[%clk 0:02:57.4]}
8... d5 {[%clk 0:02:57.1]} 9. exd5 {[%clk 0:02:57.5]} 9... Nxd5 {[%clk 0:02:58]}
10. Nxe5 {[%clk 0:02:57.8]} 10... Nxe5 {[%clk 0:02:57.9]} 11. Rxe5 {[%clk
0:02:58.5]} 11... c6 {[%clk 0:02:58.5]} 12. d3 {[%clk 0:02:58.7]} 12... Bd6
{[%clk 0:02:57.8]} 13. Re1 {[%clk 0:02:58.4]} 13... Bf5 {[%clk 0:02:49.2]} 14.
Qf3 {[%clk 0:02:55.1]} 14... Bg6 {[%clk 0:02:47.1]} 15. Bxd5 {[%clk 0:02:51.7]}
15... cxd5 {[%clk 0:02:46.7]} 16. Bf4 {[%clk 0:02:51.2]} 16... Bxf4 {[%clk
0:02:43.6]} 17. Qxf4 {[%clk 0:02:50.8]} 17... Bxd3 {[%clk 0:02:43.8]} 18. Nd2
{[%clk 0:02:50.9]} 18... Re8 {[%clk 0:02:39.3]} 19. Qd4 {[%clk 0:02:47.2]} 19...
Bg6 {[%clk 0:01:59.4]} 20. a4 {[%clk 0:02:41.6]} 20... Rb8 {[%clk 0:01:56.3]}
21. axb5 {[%clk 0:02:39.4]} 21... Rxb5 {[%clk 0:01:55.9]} 22. b4 {[%clk
0:02:33.3]} 22... a5 {[%clk 0:01:53.2]} 23. Rxe8+ {[%clk 0:02:24.7]} 23... Qxe8
{[%clk 0:01:53.2]} 24. bxa5 {[%clk 0:02:24.5]} 24... Bb1 {[%clk 0:01:46.8]} 25.
Qe3 {[%clk 0:02:10.7]} 25... Qxe3 {[%clk 0:01:36.5]} 26. fxe3 {[%clk 0:02:10.4]}
26... Bd3 {[%clk 0:01:36.2]} 27. a6 {[%clk 0:02:07.4]} 27... Rb8 {[%clk
0:01:36.1]} 28. a7 {[%clk 0:02:07.1]} 28... Ra8 {[%clk 0:01:36.6]} 29. Ra5
{[%clk 0:01:55.3]} 29... Bc4 {[%clk 0:01:32.9]} 30. Nxc4 {[%clk 0:01:53.8]}
30... dxc4 {[%clk 0:01:33.8]} 31. Rb5 {[%clk 0:01:53.5]} 1-0

[Event "*** Titled Tuesday Blitz"]
[Site "Chess.com"]
[Date "2020.05.26"]
[Round "10"]
[White "tamarozi99"]
[Black "DonBroca"]
[Result "1-0"]
[WhiteElo "2014"]
[BlackElo "2185"]
[TimeControl "180+1"]
[EndTime "11:59:45 PDT"]
[Termination "tamarozi99 won by resignation"]

1. e4 {[%clk 0:02:53.3]} 1... c5 {[%clk 0:02:32.4]} 2. Nf3 {[%clk 0:02:51.3]}
2... d6 {[%clk 0:02:31.3]} 3. d4 {[%clk 0:02:50.1]} 3... cxd4 {[%clk 0:02:32.2]}
4. Nxd4 {[%clk 0:02:50.5]} 4... Nf6 {[%clk 0:02:30.5]} 5. Nc3 {[%clk 0:02:50.3]}
5... g6 {[%clk 0:02:27.8]} 6. Be2 {[%clk 0:02:47.6]} 6... Bg7 {[%clk 0:02:27.9]}
7. Be3 {[%clk 0:02:46.6]} 7... Nc6 {[%clk 0:02:17.5]} 8. O-O {[%clk 0:02:45.6]}
8... O-O {[%clk 0:02:17.4]} 9. Nb3 {[%clk 0:02:45.3]} 9... Bd7 {[%clk
0:02:15.5]} 10. h3 {[%clk 0:02:44.6]} 10... Rc8 {[%clk 0:02:16]} 11. f4 {[%clk
0:02:43.6]} 11... Na5 {[%clk 0:02:08.4]} 12. e5 {[%clk 0:02:39.2]} 12... Nxb3
{[%clk 0:01:59.6]} 13. exf6 {[%clk 0:02:22]} 13... Nxa1 {[%clk 0:01:59.4]} 14.
fxg7 {[%clk 0:02:21.5]} 14... Kxg7 {[%clk 0:02:00.3]} 15. Qxa1 {[%clk
0:02:18.4]} 15... Qa5 {[%clk 0:01:54.6]} 16. Qe1 {[%clk 0:02:11.3]} 16... Be6
{[%clk 0:01:49.5]} 17. Qh4 {[%clk 0:02:07.7]} 17... Qb4 {[%clk 0:01:35.2]} 18.
Qxe7 {[%clk 0:01:37.2]} 18... Qxb2 {[%clk 0:01:26.8]} 19. Bd4+ {[%clk
0:01:29.1]} 19... Kg8 {[%clk 0:01:20.2]} 20. Qf6 {[%clk 0:01:29]} 1-0

[Event "*** Titled Tuesday Blitz"]
[Site "Chess.com"]
[Date "2020.05.26"]
[Round "10"]
[White "MF1966Idrisov"]
[Black "FMOlexandrProhorov"]
[Result "1-0"]
[WhiteElo "2327"]
[BlackElo "2062"]
[TimeControl "180+1"]
[EndTime "11:59:58 PDT"]
[Termination "MF1966Idrisov won by resignation"]

1. Nf3 {[%clk 0:03:00.9]} 1... Nf6 {[%clk 0:02:53.6]} 2. b3 {[%clk 0:02:59.7]}
2... g6 {[%clk 0:02:53]} 3. Bb2 {[%clk 0:02:59.8]} 3... Bg7 {[%clk 0:02:53.5]}
4. c4 {[%clk 0:03:00.4]} 4... O-O {[%clk 0:02:54.3]} 5. g3 {[%clk 0:03:00.8]}
5... d6 {[%clk 0:02:54.3]} 6. d4 {[%clk 0:03:00.4]} 6... Nbd7 {[%clk 0:02:53.1]}
7. Bg2 {[%clk 0:03:00.5]} 7... e5 {[%clk 0:02:47.7]} 8. dxe5 {[%clk 0:03:00.1]}
8... Ng4 {[%clk 0:02:48]} 9. O-O {[%clk 0:02:59.3]} 9... Ngxe5 {[%clk 0:02:48]}
10. Nc3 {[%clk 0:02:59.4]} 10... Re8 {[%clk 0:02:46.5]} 11. Qd2 {[%clk
0:02:57.8]} 11... Nc5 {[%clk 0:02:44]} 12. Rfe1 {[%clk 0:02:56.6]} 12... Bg4
{[%clk 0:02:40.9]} 13. h3 {[%clk 0:02:44.7]} 13... Bxf3 {[%clk 0:02:40.5]} 14.
exf3 {[%clk 0:02:44.4]} 14... Ncd3 {[%clk 0:02:33.4]} 15. f4 {[%clk 0:02:35.9]}
15... Nxb2 {[%clk 0:02:24.3]} 16. fxe5 {[%clk 0:02:32]} 16... Nxc4 {[%clk
0:02:05]} 17. bxc4 {[%clk 0:02:31.1]} 17... Bxe5 {[%clk 0:02:04]} 18. Bxb7
{[%clk 0:02:21.7]} 18... Rb8 {[%clk 0:02:03.6]} 19. Bc6 {[%clk 0:02:19.2]} 19...
Rf8 {[%clk 0:02:03.9]} 20. Rab1 {[%clk 0:02:16.5]} 20... Qf6 {[%clk 0:02:03.5]}
21. Nd5 {[%clk 0:02:14.1]} 21... Qg7 {[%clk 0:02:02.6]} 22. Kg2 {[%clk
0:02:07.3]} 22... h5 {[%clk 0:02:01.6]} 23. h4 {[%clk 0:02:05.8]} 23... Kh7
{[%clk 0:02:00.9]} 24. Qc2 {[%clk 0:01:57.3]} 24... Rxb1 {[%clk 0:01:55.8]} 25.
Rxb1 {[%clk 0:01:56.4]} 25... Bd4 {[%clk 0:01:45.9]} 26. Qe4 {[%clk 0:01:49.6]}
26... Bc5 {[%clk 0:01:42.6]} 27. Rb7 {[%clk 0:01:43.8]} 27... Qa1 {[%clk
0:01:33.1]} 28. Rxc7 {[%clk 0:01:40.2]} 28... Qxa2 {[%clk 0:01:33.4]} 29. Qf3
{[%clk 0:01:36]} 29... Kg7 {[%clk 0:01:32.7]} 30. Qf6+ {[%clk 0:01:32]} 30...
Kh7 {[%clk 0:01:32.3]} 31. Rxf7+ {[%clk 0:01:29.7]} 1-0

[Event "*** Titled Tuesday Blitz"]
[Site "Chess.com"]
[Date "2020.05.26"]
[Round "10"]
[White "Ladislav1969"]
[Black "Kostya26"]
[Result "1/2-1/2"]
[WhiteElo "2326"]
[BlackElo "2442"]
[TimeControl "180+1"]
[EndTime "12:00:03 PDT"]
[Termination "Game drawn by agreement"]

1. e4 {[%clk 0:03:00.9]} 1... c5 {[%clk 0:02:55.9]} 2. d4 {[%clk 0:03:00.9]}
2... cxd4 {[%clk 0:02:55.2]} 3. c3 {[%clk 0:03:01.8]} 3... dxc3 {[%clk
0:02:56.1]} 4. Nxc3 {[%clk 0:03:01.7]} 4... Nc6 {[%clk 0:02:57]} 5. Nf3 {[%clk
0:03:01.7]} 5... d6 {[%clk 0:02:51.3]} 6. Bc4 {[%clk 0:03:02.2]} 6... e6 {[%clk
0:02:48.9]} 7. O-O {[%clk 0:03:01.1]} 7... Be7 {[%clk 0:02:49.1]} 8. Qe2 {[%clk
0:03:00.8]} 8... Nf6 {[%clk 0:02:48.6]} 9. Rd1 {[%clk 0:03:00.8]} 9... e5 {[%clk
0:02:49.1]} 10. Be3 {[%clk 0:02:34.4]} 10... O-O {[%clk 0:02:47.9]} 11. Rac1
{[%clk 0:02:32.2]} 11... Be6 {[%clk 0:02:36.2]} 12. a3 {[%clk 0:02:17.8]} 12...
Rc8 {[%clk 0:02:17.8]} 13. b4 {[%clk 0:02:08.5]} 13... Bxc4 {[%clk 0:02:06.4]}
14. Qxc4 {[%clk 0:02:08.4]} 14... Nd4 {[%clk 0:02:07]} 15. Qd3 {[%clk
0:01:58.9]} 15... Nxf3+ {[%clk 0:02:05.2]} 16. gxf3 {[%clk 0:01:58.4]} 16... a6
{[%clk 0:01:58.9]} 17. Nd5 {[%clk 0:01:51.7]} 17... Nxd5 {[%clk 0:01:54.1]} 18.
Qxd5 {[%clk 0:01:48.8]} 18... Rxc1 {[%clk 0:01:49.9]} 19. Rxc1 {[%clk
0:01:48.1]} 19... Bg5 {[%clk 0:01:50.4]} 20. Qxb7 {[%clk 0:01:27.3]} 20... Bxe3
{[%clk 0:01:44.5]} 21. fxe3 {[%clk 0:01:27.5]} 21... Qg5+ {[%clk 0:01:45.1]} 22.
Kf2 {[%clk 0:01:27.7]} 22... Qh4+ {[%clk 0:01:45.4]} 23. Kg2 {[%clk 0:01:25.7]}
23... Qg5+ {[%clk 0:01:45.3]} 24. Kf2 {[%clk 0:01:22.8]} 24... Qh4+ {[%clk
0:01:44.1]} 25. Kg2 {[%clk 0:01:20.5]} 25... Qg5+ {[%clk 0:01:24.3]} 1/2-1/2